[Event "Live Chess"]
[Site "Chess.com"]
[Date "2023.05.21"]
[Round "-"]
[White "seasidecastle27"]
[Black "Shepherds_Pie"]
[Result "1-0"]
[WhiteElo "1869"]
[BlackElo "1918"]
[TimeControl "300"]
[EndTime "0:42:48 PDT"]
[Termination "seasidecastle27 won by checkmate"]

1. d4 {[%clk 0:04:58.1]} 1... d5 {[%clk 0:04:57.7]} 2. Nf3 {[%clk 0:04:57.1]}
2... Nf6 {[%clk 0:04:56.3]} 3. Bf4 {[%clk 0:04:56]} 3... c5 {[%clk 0:04:54.9]}
4. e3 {[%clk 0:04:52.8]} 4... Nc6 {[%clk 0:04:53.7]} 5. c3 {[%clk 0:04:49.7]}
5... g6 {[%clk 0:04:52.3]} 6. Bd3 {[%clk 0:04:47.2]} 6... Bg7 {[%clk 0:04:51.1]}
7. Nbd2 {[%clk 0:04:45.7]} 7... O-O {[%clk 0:04:49.6]} 8. h3 {[%clk 0:04:43.9]}
8... b6 {[%clk 0:04:48]} 9. Qe2 {[%clk 0:04:42]} 9... a5 {[%clk 0:04:43.8]} 10.
O-O {[%clk 0:04:39.3]} 10... c4 {[%clk 0:04:41.4]} 11. Bc2 {[%clk 0:04:37.2]}
11... b5 {[%clk 0:04:41.3]} 12. e4 {[%clk 0:04:32.4]} 12... e6 {[%clk
0:04:39.8]} 13. e5 {[%clk 0:04:29.4]} 13... Nd7 {[%clk 0:04:38.3]} 14. Qe3
{[%clk 0:04:25.3]} 14... b4 {[%clk 0:04:29.1]} 15. Bg5 {[%clk 0:04:21.3]} 15...
Qb6 {[%clk 0:04:26.7]} 16. Bh6 {[%clk 0:04:18.9]} 16... bxc3 {[%clk 0:04:23.6]}
17. bxc3 {[%clk 0:04:16.9]} 17... Qb2 {[%clk 0:04:22]} 18. Rfc1 {[%clk
0:04:13.6]} 18... Ba6 {[%clk 0:04:12.2]} 19. Bxg7 {[%clk 0:04:04.5]} 19... Kxg7
{[%clk 0:04:10.6]} 20. a4 {[%clk 0:03:49.6]} 20... Qb6 {[%clk 0:04:05.1]} 21. h4
{[%clk 0:03:42.6]} 21... h5 {[%clk 0:04:02.3]} 22. Ng5 {[%clk 0:03:29.7]} 22...
Qd8 {[%clk 0:04:00.2]} 23. g3 {[%clk 0:03:22.3]} 23... Qe7 {[%clk 0:03:57.8]}
24. Ndf3 {[%clk 0:03:13.8]} 24... Rab8 {[%clk 0:03:55.4]} 25. Rab1 {[%clk
0:02:57.7]} 25... Rxb1 {[%clk 0:03:51.6]} 26. Rxb1 {[%clk 0:02:55.6]} 26... Rb8
{[%clk 0:03:51.5]} 27. Rxb8 {[%clk 0:02:52.7]} 27... Ncxb8 {[%clk 0:03:50.3]}
28. Nh2 {[%clk 0:02:44.9]} 28... Bc8 {[%clk 0:03:33.5]} 29. g4 {[%clk
0:02:42.3]} 29... hxg4 {[%clk 0:03:30.5]} 30. Nxg4 {[%clk 0:02:40.7]} 30... Nc6
{[%clk 0:03:26.7]} 31. f4 {[%clk 0:02:31.9]} 31... Nb4 {[%clk 0:03:16.1]} 32.
Bb1 {[%clk 0:02:19.2]} 32... Ba6 {[%clk 0:03:03.4]} 33. h5 {[%clk 0:02:16]}
33... gxh5 {[%clk 0:02:59.5]} 34. Qh3 {[%clk 0:02:10.7]} 34... hxg4 {[%clk
0:02:56.7]} 35. Qh7+ {[%clk 0:02:04.3]} 35... Kf8 {[%clk 0:02:54.7]} 36. Qh8#
{[%clk 0:02:02.8]} 1-0

[Event "Live Chess"]
[Site "Chess.com"]
[Date "2023.05.21"]
[Round "-"]
[White "JohanKjeldahl"]
[Black "matt1979"]
[Result "1-0"]
[WhiteElo "1890"]
[BlackElo "1527"]
[TimeControl "300"]
[EndTime "0:43:04 PDT"]
[Termination "JohanKjeldahl won by resignation"]

1. e4 {[%clk 0:04:57.6]} 1... d6 {[%clk 0:04:58]} 2. d4 {[%clk 0:04:56]} 2...
Nf6 {[%clk 0:04:56.7]} 3. Nc3 {[%clk 0:04:54.6]} 3... e5 {[%clk 0:04:55.4]} 4.
Nf3 {[%clk 0:04:49.9]} 4... Nbd7 {[%clk 0:04:53.5]} 5. Bc4 {[%clk 0:04:46.6]}
5... Be7 {[%clk 0:04:44.4]} 6. O-O {[%clk 0:04:43.6]} 6... O-O {[%clk
0:04:43.3]} 7. Be3 {[%clk 0:04:41.8]} 7... c6 {[%clk 0:04:37.1]} 8. h3 {[%clk
0:04:36.6]} 8... Qc7 {[%clk 0:04:35.6]} 9. Bb3 {[%clk 0:04:30.7]} 9... b5 {[%clk
0:04:33.6]} 10. d5 {[%clk 0:04:25.4]} 10... a6 {[%clk 0:03:52.4]} 11. dxc6
{[%clk 0:04:23.7]} 11... Qxc6 {[%clk 0:03:51.3]} 12. Nd5 {[%clk 0:04:19.6]}
12... Nxd5 {[%clk 0:03:40]} 13. Bxd5 {[%clk 0:04:17.5]} 13... Qc7 {[%clk
0:03:27.5]} 14. Bxa8 {[%clk 0:04:15.7]} 14... a5 {[%clk 0:03:20]} 15. Bd5 {[%clk
0:04:13.3]} 15... Ba6 {[%clk 0:03:17.2]} 16. Qd2 {[%clk 0:04:08.6]} 16... b4
{[%clk 0:03:15.4]} 17. Rfd1 {[%clk 0:04:06.6]} 17... Rc8 {[%clk 0:03:12.4]} 18.
Rac1 {[%clk 0:04:02.6]} 18... Nf6 {[%clk 0:03:09.1]} 19. c4 {[%clk 0:03:55.8]}
19... Nxd5 {[%clk 0:03:00.9]} 20. cxd5 {[%clk 0:03:53.6]} 20... Qb7 {[%clk
0:02:59.1]} 21. Rxc8+ {[%clk 0:03:52.3]} 21... Qxc8 {[%clk 0:02:57.7]} 22. Rc1
{[%clk 0:03:51.8]} 1-0

[Event "Live Chess"]
[Site "Chess.com"]
[Date "2023.05.21"]
[Round "-"]
[White "MJMykh"]
[Black "profpirate4"]
[Result "1-0"]
[WhiteElo "1132"]
[BlackElo "1275"]
[TimeControl "300"]
[EndTime "0:43:06 PDT"]
[Termination "MJMykh won by resignation"]

1. e4 {[%clk 0:04:57.3]} 1... c5 {[%clk 0:04:58.9]} 2. Nf3 {[%clk 0:04:56.1]}
2... d6 {[%clk 0:04:57.9]} 3. h3 {[%clk 0:04:54.1]} 3... Nf6 {[%clk 0:04:57.2]}
4. Nc3 {[%clk 0:04:51.8]} 4... e6 {[%clk 0:04:55.5]} 5. Bb5+ {[%clk 0:04:50.6]}
5... Bd7 {[%clk 0:04:53.9]} 6. Bxd7+ {[%clk 0:04:49.8]} 6... Qxd7 {[%clk
0:04:53.4]} 7. O-O {[%clk 0:04:49.1]} 7... Nc6 {[%clk 0:04:52.7]} 8. d4 {[%clk
0:04:48.1]} 8... cxd4 {[%clk 0:04:51.6]} 9. Nxd4 {[%clk 0:04:46.1]} 9... e5
{[%clk 0:04:50]} 10. Nxc6 {[%clk 0:04:43.7]} 10... Qxc6 {[%clk 0:04:48.6]} 11.
Re1 {[%clk 0:04:41.1]} 11... Rd8 {[%clk 0:04:44.9]} 12. Re2 {[%clk 0:04:35.1]}
12... d5 {[%clk 0:04:41.4]} 13. exd5 {[%clk 0:04:33.8]} 13... Nxd5 {[%clk
0:04:39.8]} 14. Nxd5 {[%clk 0:04:32.9]} 14... Rxd5 {[%clk 0:04:38.7]} 15. Qe1
{[%clk 0:04:20]} 15... Bd6 {[%clk 0:04:29.7]} 16. Rd2 {[%clk 0:04:09.6]} 16...
O-O {[%clk 0:04:26.6]} 17. Rxd5 {[%clk 0:04:07.2]} 17... Qxd5 {[%clk 0:04:25.2]}
18. Qd2 {[%clk 0:04:02.6]} 18... Qe6 {[%clk 0:04:21.2]} 19. Qd1 {[%clk 0:03:49]}
19... e4 {[%clk 0:04:15.8]} 20. Be3 {[%clk 0:03:40.3]} 20... Qe5 {[%clk
0:04:13.9]} 21. Bxa7 {[%clk 0:03:16.4]} 21... Qh2+ {[%clk 0:04:11.1]} 22. Kf1
{[%clk 0:03:15.1]} 22... Rd8 {[%clk 0:03:47.9]} 23. Bb6 {[%clk 0:03:01.5]} 23...
Rc8 {[%clk 0:03:31.4]} 24. c3 {[%clk 0:02:40.6]} 24... Rc6 {[%clk 0:03:20.6]}
25. Bd4 {[%clk 0:02:37.4]} 25... b6 {[%clk 0:03:15.6]} 26. Qg4 {[%clk 0:02:31]}
26... g6 {[%clk 0:02:57.6]} 27. Qxe4 {[%clk 0:02:15.5]} 27... Bc5 {[%clk
0:02:37]} 28. Qxc6 {[%clk 0:02:04.5]} 28... Qh1+ {[%clk 0:02:33.1]} 29. Ke2
{[%clk 0:02:02.7]} 29... Qxa1 {[%clk 0:02:28.1]} 30. Bxc5 {[%clk 0:02:00.1]}
30... Qxb2+ {[%clk 0:02:24.3]} 31. Kf3 {[%clk 0:01:58.6]} 31... Qxc3+ {[%clk
0:02:18.6]} 32. Ke2 {[%clk 0:01:54.2]} 32... Qxc5 {[%clk 0:01:54.4]} 33. Qxc5
{[%clk 0:01:52.3]} 33... bxc5 {[%clk 0:01:53.5]} 34. a4 {[%clk 0:01:50.5]} 34...
f5 {[%clk 0:01:51.1]} 35. a5 {[%clk 0:01:49.4]} 35... Kf7 {[%clk 0:01:50.1]} 36.
a6 {[%clk 0:01:48.7]} 36... c4 {[%clk 0:01:49.3]} 37. a7 {[%clk 0:01:47.8]} 1-0

[Event "Live Chess"]
[Site "Chess.com"]
[Date "2023.05.21"]
[Round "-"]
[White "Richardallis"]
[Black "Tushinskiy"]
[Result "0-1"]
[WhiteElo "1876"]
[BlackElo "2185"]
[TimeControl "300"]
[EndTime "0:43:17 PDT"]
[Termination "Tushinskiy won by resignation"]

1. d4 {[%clk 0:04:57]} 1... d5 {[%clk 0:04:59.2]} 2. Nf3 {[%clk 0:04:56.3]} 2...
c6 {[%clk 0:04:59.1]} 3. Bg5 {[%clk 0:04:55.3]} 3... Nf6 {[%clk 0:04:59]} 4.
Nbd2 {[%clk 0:04:53.5]} 4... Bf5 {[%clk 0:04:57.6]} 5. e3 {[%clk 0:04:50.8]}
5... Nbd7 {[%clk 0:04:56.6]} 6. Bd3 {[%clk 0:04:49.4]} 6... Bg6 {[%clk
0:04:55.8]} 7. Qe2 {[%clk 0:04:45.6]} 7... e6 {[%clk 0:04:54.3]} 8. c3 {[%clk
0:04:42.1]} 8... Qc7 {[%clk 0:04:52.9]} 9. e4 {[%clk 0:04:40.8]} 9... dxe4
{[%clk 0:04:51.9]} 10. Nxe4 {[%clk 0:04:38.1]} 10... Nxe4 {[%clk 0:04:51.1]} 11.
Bxe4 {[%clk 0:04:37]} 11... Bd6 {[%clk 0:04:50.6]} 12. Bxg6 {[%clk 0:04:33.9]}
12... hxg6 {[%clk 0:04:50.5]} 13. h3 {[%clk 0:04:31.8]} 13... Nf6 {[%clk
0:04:48.7]} 14. Bxf6 {[%clk 0:04:29.7]} 14... gxf6 {[%clk 0:04:48.6]} 15. O-O
{[%clk 0:04:28.4]} 15... O-O-O {[%clk 0:04:45.5]} 16. b4 {[%clk 0:04:27.5]}
16... e5 {[%clk 0:04:43.7]} 17. a4 {[%clk 0:04:21]} 17... Rde8 {[%clk
0:04:40.5]} 18. Qc2 {[%clk 0:04:11.6]} 18... e4 {[%clk 0:04:39.2]} 19. Nd2
{[%clk 0:04:09.9]} 19... f5 {[%clk 0:04:37.3]} 20. Nc4 {[%clk 0:04:08.3]} 20...
g5 {[%clk 0:04:32.2]} 21. f3 {[%clk 0:03:59.3]} 21... Bh2+ {[%clk 0:04:26.4]}
22. Kf2 {[%clk 0:03:55.2]} 22... Qg3+ {[%clk 0:04:23.2]} 0-1

[Event "Live Chess"]
[Site "Chess.com"]
[Date "2023.05.21"]
[Round "-"]
[White "yarek"]
[Black "BJAW87"]
[Result "1-0"]
[WhiteElo "1882"]
[BlackElo "1447"]
[TimeControl "300"]
[EndTime "0:43:41 PDT"]
[Termination "yarek won by resignation"]

1. e4 {[%clk 0:04:57.2]} 1... c6 {[%clk 0:04:59.5]} 2. d4 {[%clk 0:04:54.9]}
2... d5 {[%clk 0:04:58.9]} 3. exd5 {[%clk 0:04:54]} 3... cxd5 {[%clk 0:04:58.3]}
4. Bd3 {[%clk 0:04:53.7]} 4... Nc6 {[%clk 0:04:57.2]} 5. c3 {[%clk 0:04:52.9]}
5... Nf6 {[%clk 0:04:56.5]} 6. Bf4 {[%clk 0:04:51.7]} 6... Qa5 {[%clk
0:04:47.5]} 7. Nf3 {[%clk 0:04:47.8]} 7... Bg4 {[%clk 0:04:45.8]} 8. Nbd2 {[%clk
0:04:44.6]} 8... e6 {[%clk 0:04:33.3]} 9. h3 {[%clk 0:04:42.5]} 9... Bh5 {[%clk
0:04:31.2]} 10. Qb3 {[%clk 0:04:36.4]} 10... Qb6 {[%clk 0:03:36.1]} 11. Qc2
{[%clk 0:04:30.6]} 11... Be7 {[%clk 0:03:26.2]} 12. O-O {[%clk 0:04:24.3]} 12...
Bg6 {[%clk 0:03:23.4]} 13. Ne5 {[%clk 0:04:18.8]} 13... Nxe5 {[%clk 0:03:11.4]}
14. Bxe5 {[%clk 0:04:06.1]} 14... O-O {[%clk 0:03:07.2]} 15. Bxg6 {[%clk
0:04:02]} 15... fxg6 {[%clk 0:03:07.1]} 16. f4 {[%clk 0:03:54.9]} 16... Bd6
{[%clk 0:02:48.3]} 17. Nf3 {[%clk 0:03:40.4]} 17... Ne4 {[%clk 0:02:40]} 18. Ng5
{[%clk 0:03:33.7]} 18... Nxg5 {[%clk 0:02:28.6]} 19. Bxd6 {[%clk 0:03:27.4]}
19... Nxh3+ {[%clk 0:02:21.4]} 20. gxh3 {[%clk 0:03:23.7]} 20... Qxd6 {[%clk
0:02:20.4]} 21. Qd2 {[%clk 0:03:13.8]} 21... Rf5 {[%clk 0:02:16.9]} 22. Rf3
{[%clk 0:03:10.7]} 22... g5 {[%clk 0:02:07.3]} 23. Raf1 {[%clk 0:03:08.5]} 23...
gxf4 {[%clk 0:02:03.8]} 24. Rxf4 {[%clk 0:03:06.8]} 24... Rxf4 {[%clk
0:02:02.4]} 25. Rxf4 {[%clk 0:03:01.6]} 25... Rf8 {[%clk 0:02:01.2]} 26. Rxf8+
{[%clk 0:02:57]} 26... Kxf8 {[%clk 0:02:01.1]} 27. Qf2+ {[%clk 0:02:51.3]} 27...
Kg8 {[%clk 0:01:59.4]} 28. Kg2 {[%clk 0:02:44.3]} 28... Qf8 {[%clk 0:01:57.9]}
29. Qe3 {[%clk 0:02:28]} 29... Qf5 {[%clk 0:01:55]} 30. b3 {[%clk 0:02:21.1]}
30... Qc2+ {[%clk 0:01:51.2]} 31. Qf2 {[%clk 0:02:20]} 31... Qxf2+ {[%clk
0:01:48.2]} 32. Kxf2 {[%clk 0:02:19.9]} 32... Kf7 {[%clk 0:01:48.1]} 33. Kf3
{[%clk 0:02:18.3]} 33... Kf6 {[%clk 0:01:45.7]} 34. Kf4 {[%clk 0:02:17.1]} 34...
g5+ {[%clk 0:01:41.2]} 35. Kg4 {[%clk 0:02:15.8]} 35... h6 {[%clk 0:01:40.5]}
36. c4 {[%clk 0:02:11.4]} 36... dxc4 {[%clk 0:01:36]} 37. bxc4 {[%clk
0:02:10.3]} 37... a6 {[%clk 0:01:18.4]} 38. Kh5 {[%clk 0:02:08.9]} 38... Kg7
{[%clk 0:01:17.2]} 39. d5 {[%clk 0:02:01.3]} 39... exd5 {[%clk 0:00:58.3]} 40.
cxd5 {[%clk 0:02:01.2]} 40... Kf6 {[%clk 0:00:57.7]} 41. Kxh6 {[%clk 0:01:59.4]}
41... Ke5 {[%clk 0:00:56]} 42. Kxg5 {[%clk 0:01:58.2]} 42... Kxd5 {[%clk
0:00:55.9]} 43. h4 {[%clk 0:01:56.8]} 43... b5 {[%clk 0:00:53]} 44. h5 {[%clk
0:01:56]} 44... Kc4 {[%clk 0:00:52.9]} 45. h6 {[%clk 0:01:54.8]} 45... Kb4
{[%clk 0:00:52.3]} 46. h7 {[%clk 0:01:54]} 46... Ka3 {[%clk 0:00:52.2]} 47. h8=Q
{[%clk 0:01:52.9]} 47... Kxa2 {[%clk 0:00:52.1]} 48. Qc3 {[%clk 0:01:50.4]}
48... b4 {[%clk 0:00:52]} 49. Qxb4 {[%clk 0:01:48.7]} 1-0

[Event "Live Chess"]
[Site "Chess.com"]
[Date "2023.05.21"]
[Round "-"]
[White "Tiltador"]
[Black "EdenHazard8"]
[Result "0-1"]
[WhiteElo "761"]
[BlackElo "1959"]
[TimeControl "300"]
[EndTime "0:43:41 PDT"]
[Termination "EdenHazard8 won by checkmate"]

1. d4 {[%clk 0:04:57.2]} 1... e5 {[%clk 0:04:59.9]} 2. dxe5 {[%clk 0:04:55.2]}
2... Nc6 {[%clk 0:04:59.2]} 3. f4 {[%clk 0:04:53.2]} 3... Bc5 {[%clk 0:04:57.4]}
4. Nf3 {[%clk 0:04:48.3]} 4... d6 {[%clk 0:04:54.5]} 5. exd6 {[%clk 0:04:46]}
5... Nge7 {[%clk 0:04:51.9]} 6. dxe7 {[%clk 0:04:12.9]} 6... Bf2+ {[%clk
0:04:49.5]} 7. Kxf2 {[%clk 0:04:00.2]} 7... Qxd1 {[%clk 0:04:49.4]} 8. Be3
{[%clk 0:03:53.9]} 8... Qxc2 {[%clk 0:04:45.9]} 9. Nc3 {[%clk 0:03:49.7]} 9...
Qxb2 {[%clk 0:04:44.1]} 10. Re1 {[%clk 0:03:40.8]} 10... Qxc3 {[%clk 0:04:42.2]}
11. g3 {[%clk 0:03:39.5]} 11... Nxe7 {[%clk 0:04:37.2]} 12. Bg2 {[%clk
0:03:36.7]} 12... Nf5 {[%clk 0:04:35.3]} 13. Bc1 {[%clk 0:03:26.5]} 13... O-O
{[%clk 0:04:31.4]} 14. Rhf1 {[%clk 0:03:20.4]} 14... Re8 {[%clk 0:04:25.7]} 15.
Kg1 {[%clk 0:03:14.4]} 15... Ne3 {[%clk 0:04:24.2]} 16. Bxe3 {[%clk 0:03:06.9]}
16... Qxe3+ {[%clk 0:04:24.1]} 17. Kh1 {[%clk 0:03:05.4]} 17... Be6 {[%clk
0:04:21.8]} 18. Ng5 {[%clk 0:03:01.1]} 18... Bxa2 {[%clk 0:04:18.6]} 19. Rf3
{[%clk 0:02:41.6]} 19... Qd2 {[%clk 0:04:14.9]} 20. Ref1 {[%clk 0:02:30.5]}
20... Rxe2 {[%clk 0:04:09.6]} 21. Rg1 {[%clk 0:02:10.1]} 21... Bd5 {[%clk
0:04:05.1]} 22. Rff1 {[%clk 0:01:44.9]} 22... Rxg2 {[%clk 0:03:58.2]} 23. Rxg2
{[%clk 0:01:39.4]} 23... Qxg2# {[%clk 0:03:56.5]} 0-1

[Event "Live Chess"]
[Site "Chess.com"]
[Date "2023.05.21"]
[Round "-"]
[White "SupremeTactician"]
[Black "diana21strabt"]
[Result "1/2-1/2"]
[WhiteElo "2283"]
[BlackElo "1723"]
[TimeControl "300"]
[EndTime "0:44:02 PDT"]
[Termination "Game drawn by agreement"]

1. e4 {[%clk 0:04:59]} 1... d5 {[%clk 0:04:58.1]} 2. exd5 {[%clk 0:04:58.3]}
2... Qxd5 {[%clk 0:04:56.8]} 3. Nf3 {[%clk 0:04:57.5]} 3... Nf6 {[%clk
0:04:55.3]} 4. Be2 {[%clk 0:04:56.5]} 4... Bg4 {[%clk 0:04:51.6]} 5. Nc3 {[%clk
0:04:55.5]} 5... Qa5 {[%clk 0:04:50]} 6. d4 {[%clk 0:04:54.7]} 6... Nc6 {[%clk
0:04:46.6]} 7. Bd2 {[%clk 0:04:52.8]} 7... O-O-O {[%clk 0:04:44.3]} 8. O-O
{[%clk 0:04:48.4]} 8... Bxf3 {[%clk 0:04:42.3]} 9. Bxf3 {[%clk 0:04:45.9]} 9...
Nxd4 {[%clk 0:04:40.1]} 10. Be3 {[%clk 0:04:36]} 10... Nxf3+ {[%clk 0:04:36.4]}
11. Qxf3 {[%clk 0:04:35.2]} 11... e6 {[%clk 0:04:33.4]} 12. Rad1 {[%clk
0:04:32.4]} 12... Bd6 {[%clk 0:04:30.2]} 13. a3 {[%clk 0:04:29.5]} 13... Qe5
{[%clk 0:04:28.5]} 14. g3 {[%clk 0:04:27.7]} 14... h5 {[%clk 0:04:26]} 15. Bxa7
{[%clk 0:04:22.7]} 15... h4 {[%clk 0:04:21.2]} 16. Rfe1 {[%clk 0:04:21.7]} 16...
Qg5 {[%clk 0:04:17.2]} 17. Be3 {[%clk 0:04:20.2]} 17... Qg6 {[%clk 0:04:13.5]}
18. Nb5 {[%clk 0:04:15.6]} 18... hxg3 {[%clk 0:04:06.2]} 19. Nxd6+ {[%clk
0:04:12]} 19... Rxd6 {[%clk 0:04:04.5]} 20. fxg3 {[%clk 0:04:11.2]} 20... Rxd1
{[%clk 0:03:57.4]} 21. Rxd1 {[%clk 0:04:11.1]} 21... Qe4 {[%clk 0:03:56]} 22.
Qxe4 {[%clk 0:04:08.3]} 22... Nxe4 {[%clk 0:03:54.7]} 23. Rd4 {[%clk 0:04:08]}
23... Nd6 {[%clk 0:03:50.6]} 24. Bf4 {[%clk 0:04:05.1]} 24... Rd8 {[%clk
0:03:46.4]} 25. Bxd6 {[%clk 0:04:02.9]} 25... Rxd6 {[%clk 0:03:42.8]} 26. Rxd6
{[%clk 0:04:02.2]} 26... cxd6 {[%clk 0:03:41.4]} 27. h4 {[%clk 0:04:01.7]} 27...
Kc7 {[%clk 0:03:38.7]} 28. g4 {[%clk 0:04:01.2]} 28... Kc6 {[%clk 0:03:34.1]}
29. Kf2 {[%clk 0:03:56.1]} 29... Kd5 {[%clk 0:03:33.1]} 30. Kf3 {[%clk
0:03:55.1]} 30... Kd4 {[%clk 0:03:30.8]} 31. a4 {[%clk 0:03:48.9]} 31... f6
{[%clk 0:03:29.5]} 32. h5 {[%clk 0:03:46.8]} 32... Kc4 {[%clk 0:03:24.9]} 33.
b3+ {[%clk 0:03:42]} 33... Kc3 {[%clk 0:03:21.1]} 34. g5 {[%clk 0:03:41]} 34...
fxg5 {[%clk 0:03:17.3]} 35. Kg4 {[%clk 0:03:40.2]} 35... Kxc2 {[%clk 0:03:15.1]}
36. b4 {[%clk 0:03:37]} 36... Kb3 {[%clk 0:03:13.9]} 37. Kxg5 {[%clk 0:03:35.9]}
37... Kxb4 {[%clk 0:03:09.9]} 38. Kg6 {[%clk 0:03:34.5]} 38... d5 {[%clk
0:03:09.1]} 39. Kxg7 {[%clk 0:03:34.1]} 39... d4 {[%clk 0:03:08.3]} 40. h6
{[%clk 0:03:33.1]} 40... d3 {[%clk 0:03:07.7]} 41. h7 {[%clk 0:03:33]} 41... d2
{[%clk 0:03:06.8]} 42. h8=Q {[%clk 0:03:32.3]} 42... d1=Q {[%clk 0:03:05.2]} 43.
Qf8+ {[%clk 0:03:31.3]} 43... Kxa4 {[%clk 0:03:02]} 44. Qa8+ {[%clk 0:03:30.5]}
44... Kb4 {[%clk 0:02:56.6]} 45. Qxb7+ {[%clk 0:03:30.4]} 45... Kc3 {[%clk
0:02:54.2]} 46. Qc6+ {[%clk 0:03:25.7]} 46... Kb4 {[%clk 0:02:48.5]} 47. Qb6+
{[%clk 0:03:21.3]} 47... Kc3 {[%clk 0:02:45.4]} 48. Qxe6 {[%clk 0:03:20.1]}
48... Qd4+ {[%clk 0:02:42.4]} 49. Kg6 {[%clk 0:03:18.2]} 49... Qd3+ {[%clk
0:02:33.1]} 1/2-1/2

[Event "Live Chess"]
[Site "Chess.com"]
[Date "2023.05.21"]
[Round "-"]
[White "chessfiction"]
[Black "WelshTiger"]
[Result "0-1"]
[WhiteElo "2348"]
[BlackElo "2360"]
[TimeControl "300"]
[EndTime "0:44:02 PDT"]
[Termination "WelshTiger won by resignation"]

1. e4 {[%clk 0:04:59.5]} 1... c5 {[%clk 0:04:58.7]} 2. d4 {[%clk 0:04:59.4]}
2... cxd4 {[%clk 0:04:55]} 3. c3 {[%clk 0:04:59.3]} 3... Nf6 {[%clk 0:04:52]} 4.
e5 {[%clk 0:04:58.2]} 4... Nd5 {[%clk 0:04:51.3]} 5. Nf3 {[%clk 0:04:54.7]} 5...
Nc6 {[%clk 0:04:46.6]} 6. Bc4 {[%clk 0:04:53.6]} 6... e6 {[%clk 0:04:46]} 7. O-O
{[%clk 0:04:51.8]} 7... d6 {[%clk 0:04:40.7]} 8. exd6 {[%clk 0:04:49.5]} 8...
Bxd6 {[%clk 0:04:37.3]} 9. Re1 {[%clk 0:04:48.6]} 9... O-O {[%clk 0:04:35.5]}
10. cxd4 {[%clk 0:04:39.1]} 10... b6 {[%clk 0:04:24]} 11. Nc3 {[%clk 0:04:37.5]}
11... Nxc3 {[%clk 0:04:22.4]} 12. bxc3 {[%clk 0:04:37.4]} 12... Bb7 {[%clk
0:04:20.1]} 13. Bd3 {[%clk 0:04:35.2]} 13... Ne7 {[%clk 0:04:08]} 14. Bxh7+
{[%clk 0:04:33.4]} 14... Kxh7 {[%clk 0:04:06.7]} 15. Ng5+ {[%clk 0:04:32.9]}
15... Kg6 {[%clk 0:04:06.1]} 16. Qg4 {[%clk 0:04:25]} 16... f5 {[%clk 0:03:59]}
17. Qh3 {[%clk 0:04:10.2]} 17... Bd5 {[%clk 0:03:45.8]} 18. Qxf5+ {[%clk
0:03:54.5]} 18... Rxf5 {[%clk 0:03:41.5]} 0-1